bitfinex/quotes_SOLUSD_20250602
["timestamp","ask_amount","ask_price","bid_price","bid_amount"]
[1748882909658,38.91108193,152.86,152.83,6.54321795]
[1748882911148,38.91108193,152.85,152.81,38.91108193]
[1748882911551,38.91108193,152.86,152.81,38.91108193]
[1748882912163,38.91108193,152.85,152.81,38.91108193]
[1748882912569,38.91108193,152.85,152.82,6.54364611]
[1748882913253,38.91108193,152.84,152.78,6.13]
[1748882913459,38.91108193,152.81,152.78,6.54535934]
[1748882913863,26.28432314,152.85,152.74,6.567]
[1748882913864,38.91108193,152.79,152.74,6.567]
[1748882914057,38.91108193,152.8,152.76,38.91108193]
[1748882914279,38.91108193,152.79,152.75,45.45772677]
[1748882914551,0.42648471,152.82,152.75,6.54664484]
[1748882914766,38.91108193,152.79,152.75,22.91325695]
[1748882914985,38.91108193,152.78,152.75,6.54664484]
[1748882915275,38.91108193,152.77,152.75,6.54664484]
[1748882915568,38.91108193,152.76,152.73,6.54750212]
[1748882915775,38.91108193,152.8,152.71,6.54835963]
[1748882915776,38.91108193,152.74,152.71,6.54835963]
[1748882915950,38.91108193,152.72,152.71,6.54835963]
[1748882916282,38.91108193,152.75,152.71,45.45944156]
[1748882916490,38.91108193,152.74,152.71,6.54835963]
[1748882916951,38.91108193,152.75,152.71,6.54835963]
[1748882917357,0.14216157,152.76,152.71,6.54835963]
[1748882917358,38.91108193,152.74,152.71,6.54835963]
[1748882918688,38.91108193,152.74,152.7,61.83168002]
[1748882919054,38.91108193,152.74,152.7,22.92059809]
[1748882919581,38.91108193,152.73,152.7,22.92059809]
[1748882919791,38.91108193,152.71,152.7,6.54878847]
[1748882920162,38.91108193,152.71,152.67,16.3745093]
[1748882920362,0.28432314,152.74,152.67,16.3745093]
[1748882920562,38.91108193,152.72,152.68,22.9237621]
[1748882920767,174.11976157,152.76,152.68,61.83484403]
[1748882920999,38.91108193,152.74,152.69,38.91108193]
[1748882922981,38.91108193,152.74,152.7,6.54878847]
[1748882923179,38.91108193,152.74,152.7,22.92075965]
[1748882923382,38.91108193,152.75,152.7,61.83184158]
[1748882923586,211.31108193,152.76,152.71,38.91108193]
[1748882924392,38.91108193,152.75,152.71,38.91108193]
[1748882924582,211.31108193,152.76,152.72,38.91108193]
[1748882924883,38.91108193,152.76,152.73,22.91625743]
[1748882925300,146.82648471,152.79,152.73,6.54750212]
[1748882925301,38.91108193,152.75,152.73,6.54750212]
[1748882925793,38.91108193,152.76,152.73,22.91625743]
[1748882927586,179.3718022,152.79,152.73,6.54750212]
[1748882927774,38.91108193,152.74,152.71,6.54835963]
[1748882927976,0.42648471,152.76,152.67,16.3741305]
[1748882927977,38.91108193,152.72,152.68,6.54964631]
[1748882928181,26.42648471,152.76,152.68,6.54964631]
[1748882928182,38.91108193,152.71,152.68,6.54964631]
[1748882928509,38.91108193,152.7,152.68,6.54964631]
[1748882928661,38.91108193,152.69,152.68,6.54964631]
[1748882928864,38.91108193,152.69,152.67,16.3741305]
[1748882929092,38.91108193,152.68,152.66,6.55050438]
[1748882929499,38.91108193,152.69,152.66,22.92676535]
[1748882929980,38.91108193,152.7,152.66,22.92676535]
[1748882930181,38.91108193,152.72,152.67,38.91108193]
[1748882930371,38.91108193,152.73,152.69,38.91108193]
[1748882931078,38.91108193,152.73,152.66,55.67928729]
[1748882931079,38.91108193,152.72,152.7,6.54878847]
[1748882932091,38.91108193,152.72,152.69,6.54921736]
[1748882934408,38.91108193,152.7,152.69,6.54921736]
[1748882934766,38.91108193,152.71,152.69,6.54921736]
[1748882935001,38.91108193,152.73,152.69,45.46029929]
[1748882935174,38.91108193,152.73,152.69,61.83334271]
[1748882935374,38.91108193,152.73,152.69,22.92226078]
[1748882936212,38.91108193,152.72,152.69,6.54921736]
[1748882936504,38.91108193,152.72,152.68,6.54964631]
[1748882937097,38.91108193,152.72,152.68,22.9237621]
[1748882938086,38.91108193,152.71,152.68,6.54964631]
[1748882938484,38.91108193,152.71,152.67,6.55007532]
[1748882939304,38.91108193,152.71,152.67,45.46115725]
[1748882939671,38.91108193,152.71,152.67,6.55007532]
[1748882940281,38.91108193,152.7,152.67,6.55007532]
[1748882940713,38.91108193,152.69,152.67,6.55007532]
[1748882941497,39.0532435,152.71,152.67,6.55007532]
[1748882941697,38.91108193,152.71,152.67,6.55007532]
[1748882941894,38.91108193,152.71,152.67,22.92526363]
[1748882942799,39.0532435,152.73,152.69,38.91108193]
[1748882943207,23.52810863,152.73,152.69,23.38594706]
[1748882944098,23.52810863,152.73,152.68,23.38594706]
[1748882944708,23.52810863,152.73,152.69,6.54921736]
[1748882945521,23.38594706,152.72,152.69,6.54921736]
[1748882946209,23.38594706,152.73,152.69,22.92226078]
[1748882946792,23.38594706,152.71,152.69,6.54921736]
[1748882947610,23.38594706,152.7,152.63,22.93023185]
[1748882947796,23.38594706,152.67,152.63,46.31617891]
[1748882948709,23.38594706,152.67,152.63,22.93023185]
[1748882949409,23.38594706,152.66,152.63,6.55179191]
[1748882949612,152.94881189,152.7,152.56,112.68594706]
[1748882949613,23.38594706,152.64,152.58,23.38594706]
[1748882949796,0.14216157,152.63,152.58,6.55393891]
[1748882949992,23.38594706,152.6,152.58,6.55393891]
[1748882950191,23.38594706,152.61,152.58,6.55393891]
[1748882951305,23.38594706,152.61,152.58,22.9387862]
[1748882951489,23.38594706,152.62,152.58,22.9387862]
[1748882951687,23.38594706,152.61,152.58,22.9387862]
[1748882952305,23.38594706,152.61,152.58,6.55393891]
[1748882952819,23.38594706,152.61,152.57,22.94002045]
[1748882953421,39.03773833,152.61,152.57,22.94002045]
[1748882953605,39.03773833,152.6,152.57,6.55436848]
[1748882955028,39.03773833,152.6,152.57,22.94028969]
[1748882955331,39.03773833,152.62,152.58,39.03773833]
[1748882955502,39.03773833,152.61,152.57,6.55436848]
[1748882955703,39.03773833,152.6,152.57,6.55436848]
[1748882955935,39.03773833,152.58,152.57,6.55436848]
[1748882956800,39.03773833,152.59,152.57,6.55436848]
[1748882957101,39.03773833,152.59,152.55,22.94329727]
[1748882957507,39.03773833,152.6,152.55,61.9810356]
[1748882958407,39.03773833,152.63,152.59,39.03773833]
[1748882958802,39.03773833,152.63,152.58,39.03773833]
[1748882959803,39.03773833,152.63,152.55,22.94329727]
[1748882960013,39.03773833,152.63,152.58,39.03773833]
[1748882960217,39.03773833,152.62,152.58,39.03773833]
[1748882960411,39.03773833,152.61,152.57,39.03773833]
[1748882962229,39.03773833,152.62,152.58,6.55393891]
[1748882963835,0.42648471,152.64,152.58,6.55393891]
[1748882964125,39.03773833,152.62,152.58,6.55393891]
[1748882965726,39.03773833,152.61,152.58,6.55393891]
[1748882967134,0.42648471,152.64,152.58,6.55393891]
[1748882967135,39.03773833,152.59,152.58,6.55393891]
[1748882967457,39.03773833,152.59,152.55,6.55522779]
[1748882967737,39.03773833,152.56,152.55,6.55522779]
[1748882968127,39.03773833,152.56,152.53,6.55577856]
[1748882968328,39.03773833,152.55,152.51,22.94871369]
[1748882969835,39.03773833,152.55,152.51,61.98645202]
[1748882971943,39.03773833,152.54,152.51,22.94871369]
[1748882972142,39.03773833,152.55,152.51,61.98645202]
[1748882972522,39.03773833,152.55,152.51,22.94871369]
[1748882972922,39.03773833,152.55,152.51,61.98645202]
[1748882973324,23.4409076,152.55,152.51,46.38962129]
[1748882976132,23.4409076,152.55,152.51,22.94871369]
[1748882978020,0.14216157,152.58,152.51,6.55694708]
[1748882978021,23.4409076,152.53,152.51,6.55694708]
[1748882978221,6.69634059,152.58,152.49,6.55780706]
[1748882978222,23.4409076,152.52,152.49,6.55780706]
[1748882978447,23.4409076,152.51,152.49,6.55780706]
[1748882978941,23.4409076,152.5,152.47,6.55866727]
[1748882979153,23.4409076,152.48,152.45,6.55952771]
[1748882979447,23.4409076,152.46,152.43,6.56038837]
[1748882979820,0.28432314,152.5,152.43,6.56038837]
[1748882979821,23.4409076,152.47,152.43,6.56038837]
[1748882980021,23.4409076,152.44,152.43,6.56038837]
[1748882980231,23.4409076,152.44,152.41,6.56124926]
[1748882980426,23.4409076,152.43,152.38,39.84719494]
[1748882980648,23.4409076,152.4,152.39,6.56211037]
[1748882980862,23.4409076,152.41,152.39,6.56211037]
[1748882981435,23.4409076,152.41,152.38,6.56254101]
[1748882981722,23.4409076,152.43,152.38,46.40980114]
[1748882981927,0.14216157,152.44,152.4,23.4409076]
[1748882982220,23.4409076,152.45,152.41,23.4409076]
[1748882982928,23.4409076,152.45,152.4,23.4409076]
[1748882983125,23.4409076,152.44,152.4,23.4409076]
[1748882983541,39.12509918,152.44,152.41,6.56124926]
[1748882984434,39.12509918,152.42,152.41,6.56124926]
[1748882984751,39.26726075,152.42,152.38,6.56254101]
[1748882985051,39.12509918,152.4,152.38,6.56254101]
[1748882985247,39.12509918,152.41,152.38,6.56254101]
[1748882985752,39.12509918,152.41,152.37,6.56297171]
[1748882985951,0.14216157,152.43,152.39,39.12509918]
[1748882986258,39.26726075,152.43,152.38,39.12509918]
[1748882986460,39.12509918,152.41,152.37,22.97040099]
[1748882986631,39.12509918,152.41,152.37,62.09550017]
[1748882987530,39.12509918,152.42,152.37,62.09550017]
[1748882988251,39.12509918,152.42,152.38,39.12509918]
[1748882988652,0.14216157,152.44,152.38,39.12509918]
[1748882988966,39.12509918,152.43,152.39,6.56211037]
[1748882989129,39.12509918,152.42,152.39,6.56211037]
[1748882990224,39.12509918,152.42,152.39,22.9673863]
[1748882991839,39.12509918,152.46,152.41,39.12509918]
[1748882992143,39.12509918,152.48,152.43,39.12509918]
[1748882992344,39.12509918,152.46,152.42,39.12509918]
[1748882992967,146.4,152.49,152.43,39.12509918]
[1748882993257,39.26726075,152.47,152.42,39.12509918]
[1748882993650,39.12509918,152.45,152.43,6.56038837]
[1748882993961,0.14216157,152.47,152.43,6.56038837]
[1748882993962,39.12509918,152.44,152.43,6.56038837]
[1748882994739,39.12509918,152.45,152.43,6.56038837]
[1748882995959,39.12509918,152.45,152.41,6.56124926]
[1748882996868,39.12509918,152.44,152.41,6.56124926]
[1748883000562,39.12509918,152.42,152.39,6.56211037]
[1748883001143,39.12509918,152.41,152.39,6.56211037]
[1748883001744,1.78822314,152.46,152.39,6.56211037]
[1748883001963,39.12509918,152.42,152.39,6.56211037]
[1748883002767,39.12509918,152.4,152.39,6.56211037]
[1748883004160,39.12509918,152.41,152.39,6.56211037]
[1748883005055,39.12509918,152.41,152.37,22.96933293]
[1748883005257,23.48446666,152.41,152.37,22.96933293]
[1748883005448,0.14216157,152.43,152.39,23.48446666]
[1748883005656,23.48446666,152.44,152.4,23.48446666]
[1748883006163,23.48446666,152.42,152.38,23.48446666]
[1748883006365,23.48446666,152.41,152.37,46.45379959]
[1748883006756,23.48446666,152.41,152.37,22.96933293]
[1748883007063,23.48446666,152.4,152.37,22.96933293]
[1748883007565,23.48446666,152.39,152.37,6.56297171]
[1748883009150,23.48446666,152.4,152.36,22.97190862]
[1748883011267,23.48446666,152.4,152.36,46.45637528]
[1748883012976,23.48446666,152.4,152.36,16.40850616]
[1748883013674,146.4,152.42,152.39,23.48446666]
[1748883013890,146.4,152.42,152.4,23.48446666]
[1748883015177,146.4,152.42,152.39,23.48446666]
[1748883015380,23.48446666,152.41,152.37,23.48446666]
[1748883017288,23.48446666,152.41,152.38,6.56254101]
[1748883017859,169.88446666,152.42,152.38,6.56254101]
[1748883018175,23.48446666,152.41,152.38,6.56254101]
[1748883018881,23.48446666,152.4,152.38,6.56254101]
[1748883019185,23.48446666,152.39,152.38,6.56254101]
[1748883019381,23.48446666,152.4,152.36,46.45637528]
[1748883020670,23.48446666,152.4,152.36,22.97190862]
[1748883021980,23.48446666,152.39,152.36,22.97190862]
[1748883023187,0.28432314,152.41,152.36,16.40850616]
[1748883023373,23.48446666,152.39,152.36,16.40850616]
[1748883023565,23.48446666,152.38,152.35,6.56383327]
[1748883024166,0.28432314,152.41,152.35,6.56383327]
[1748883024167,23.48446666,152.37,152.35,6.56383327]
[1748883024377,23.48446666,152.36,152.35,6.56383327]
[1748883024679,23.48446666,152.37,152.35,6.56383327]
[1748883025176,6.70352689,152.41,152.36,23.48446666]
[1748883025177,3.72671156,152.41,152.36,23.48446666]
[1748883025482,27.21117822,152.41,152.37,23.48446666]
[1748883026063,23.48446666,152.41,152.37,23.48446666]
[1748883026372,23.48446666,152.4,152.36,23.48446666]
[1748883027079,3.72679001,152.41,152.36,23.48446666]
[1748883027256,23.62662823,152.41,152.37,6.56297171]
[1748883027458,23.62662823,152.41,152.37,22.97040099]
[1748883028499,4.65750769,152.45,152.39,23.48446666]
[1748883028676,3.72480137,152.45,152.43,23.48446666]
[1748883028868,146.4,152.46,152.43,23.48446666]
[1748883029269,146.4,152.46,152.44,6.55995801]
[1748883030285,23.48446666,152.47,152.44,6.55995801]
[1748883030881,0.14216157,152.48,152.44,30.04442467]
[1748883031091,23.7687898,152.48,152.44,30.04442467]
[1748883031463,23.7687898,152.48,152.44,6.55995801]
[1748883032092,23.7687898,152.48,152.44,30.04442467]
[1748883032468,27.2083792,152.49,152.44,46.44431971]
[1748883032670,23.48446666,152.49,152.45,23.48446666]
[1748883033381,23.48446666,152.49,152.46,6.55909746]
[1748883034465,146.4,152.51,152.46,22.95684113]
[1748883034666,146.4,152.51,152.47,23.48446666]
[1748883035563,146.4,152.51,152.48,30.0427038]
[1748883036164,146.4,152.51,152.47,6.5585651]
[1748883036165,23.48446666,152.5,152.47,6.5585651]
[1748883036364,23.48446666,152.49,152.46,6.55895036]
[1748883037058,23.7687898,152.5,152.46,6.55895036]
[1748883037263,0.14216157,152.5,152.46,30.04341702]
[1748883038670,169.88446666,152.51,152.47,23.48446666]
[1748883039683,169.88446666,152.51,152.48,6.55823714]
[1748883041066,23.48446666,152.5,152.48,6.55823714]
[1748883041884,23.48446666,152.5,152.47,6.55866727]
[1748883042271,23.48446666,152.48,152.44,6.55995801]
[1748883042471,0.28432314,152.49,152.44,6.55995801]
[1748883042472,23.48446666,152.47,152.44,6.55995801]
[1748883042771,23.48446666,152.48,152.44,6.55995801]
[1748883043991,0.28432314,152.49,152.44,6.55995801]
[1748883044188,23.48446666,152.48,152.44,30.04442467]
[1748883046101,23.48446666,152.48,152.44,6.55995801]
[1748883047276,23.7687898,152.5,152.45,23.48446666]
[1748883047477,146.4,152.51,152.46,23.48446666]
[1748883047796,146.4,152.51,152.48,23.48446666]
[1748883048482,146.4,152.51,152.49,23.48446666]
[1748883048686,146.4,152.56,152.5,23.48446666]
[1748883048889,23.48446666,152.55,152.51,6.55694708]
[1748883049087,23.48446666,152.54,152.51,6.55694708]
[1748883049405,23.48446666,152.53,152.48,6.2364]
[1748883049587,23.48446666,152.51,152.47,39.88106561]
[1748883050175,23.48446666,152.51,152.47,6.55866727]
[1748883051302,6.55632016,152.53,152.47,6.55866727]
[1748883051605,23.48446666,152.5,152.47,6.55866727]
[1748883051789,23.48446666,152.51,152.47,6.55866727]
[1748883052099,23.48446666,152.51,152.47,30.04313393]
[1748883052299,23.62662823,152.52,152.47,30.04313393]
[1748883053199,23.62662823,152.52,152.48,23.48446666]
[1748883053382,23.62662823,152.52,152.49,6.55780706]
[1748883053577,23.48446666,152.51,152.45,6.55952771]
[1748883053780,23.48446666,152.46,152.44,6.55976534]
[1748883053980,23.48446666,152.45,152.41,6.56124926]
[1748883054391,23.48446666,152.45,152.41,22.96437241]
[1748883054802,23.48446666,152.45,152.41,46.44883907]
[1748883055306,23.48446666,152.46,152.41,46.44883907]
[1748883056212,23.48446666,152.45,152.41,46.44883907]
[1748883056692,23.48446666,152.45,152.41,6.56124926]
[1748883056998,23.48446666,152.44,152.41,6.56124926]
[1748883057397,23.48446666,152.43,152.41,6.56124926]
[1748883057597,23.48446666,152.42,152.38,6.56254101]
[1748883058107,23.48446666,152.42,152.38,30.04700767]
[1748883058404,23.48446666,152.42,152.38,6.56254101]
[1748883060310,23.48446666,152.4,152.37,6.56297171]
[1748883060497,0.28432314,152.43,152.37,6.56297171]
[1748883060498,23.48446666,152.39,152.37,6.56297171]
[1748883060693,23.48446666,152.38,152.32,6.1684]
[1748883060893,23.48446666,152.38,152.33,6.56469506]
[1748883060894,23.48446666,152.34,152.33,6.56469506]
[1748883061095,23.48446666,152.35,152.33,6.56469506]
[1748883061309,23.48446666,152.36,152.33,6.56469506]
[1748883061684,0.14216157,152.38,152.33,6.56469506]
[1748883061685,23.48446666,152.37,152.33,30.04916172]
[1748883061887,23.48446666,152.36,152.33,6.56469506]
[1748883062309,23.48446666,152.37,152.33,6.56469506]
[1748883063012,23.48446666,152.38,152.34,23.48446666]
[1748883063688,23.48446666,152.39,152.34,23.48446666]
[1748883064413,23.48446666,152.39,152.35,6.56383327]
[1748883064585,0.14216157,152.41,152.35,46.45788312]
[1748883064785,23.48446666,152.4,152.36,23.48446666]
[1748883064999,23.48446666,152.38,152.35,22.97341646]
[1748883065590,23.48446666,152.39,152.35,22.97341646]
[1748883066515,23.48446666,152.39,152.35,46.45788312]
[1748883066808,23.48446666,152.39,152.35,22.97341646]
[1748883066990,23.48446666,152.38,152.35,22.97341646]
[1748883067195,23.48446666,152.39,152.35,22.97341646]
[1748883069032,23.48446666,152.39,152.35,46.45788312]
[1748883069193,23.48446666,152.39,152.35,22.97341646]
[1748883069509,23.48446666,152.36,152.34,6.56409683]
[1748883070093,23.48446666,152.35,152.31,51.05476666]
[1748883070729,23.48446666,152.36,152.32,6.56512605]
[1748883070903,23.48446666,152.36,152.32,30.04959271]
[1748883071298,23.48446666,152.36,152.32,46.46240783]
[1748883071694,23.48446666,152.36,152.32,22.97794117]
[1748883073096,23.48446666,152.35,152.32,6.56512605]
[1748883073444,23.48446666,152.33,152.31,6.56544216]
[1748883073794,23.48446666,152.32,152.31,6.56544216]
[1748883074593,23.48446666,152.32,152.3,0.3556988]
[1748883074791,23.48446666,152.32,152.3,6.92168271]
[1748883075399,0.42648471,152.35,152.3,0.3556988]
[1748883075400,23.91095137,152.31,152.3,0.3556988]
[1748883076934,0.42648471,152.31,152.3,0.3556988]
[1748883077115,23.91095137,152.31,152.3,0.3556988]
[1748883077618,23.48446666,152.31,152.3,0.3556988]
[1748883077805,23.48446666,152.31,152.3,6.92168698]
[1748883078326,23.48446666,152.36,152.3,46.82112409]
[1748883078516,23.48446666,152.36,152.32,23.48446666]
[1748883078707,23.48446666,152.36,152.33,6.56469506]
[1748883079110,169.88446666,152.37,152.33,6.56469506]
[1748883079440,185.5611501,152.37,152.33,62.13758283]
[1748883079944,39.1611501,152.39,152.35,39.1611501]
[1748883080313,39.1611501,152.39,152.33,22.97643273]
[1748883080517,39.1611501,152.37,152.33,62.13758283]
[1748883080903,39.1611501,152.38,152.34,39.1611501]
[1748883081306,39.1611501,152.38,152.33,62.13758283]
[1748883083216,39.1611501,152.38,152.34,39.1611501]
[1748883083616,39.1611501,152.39,152.33,22.97643273]
[1748883083819,39.1611501,152.38,152.34,39.1611501]
[1748883084630,39.1611501,152.38,152.33,55.57288777]
[1748883085524,39.30331167,152.39,152.34,39.1611501]
[1748883085836,12.64216486,152.4,152.36,39.1611501]
[1748883086408,51.80331496,152.4,152.36,39.1611501]
[1748883086607,51.80331496,152.4,152.37,6.56297171]
[1748883086806,12.64216486,152.4,152.37,45.72412181]
[1748883089007,12.64216486,152.4,152.37,62.13155109]
[1748883089213,12.64216486,152.4,152.38,39.1611501]
[1748883089410,12.64216486,152.4,152.39,57.81079896]
[1748883089706,39.1611501,152.46,152.39,64.34099896]
[1748883089946,39.1611501,152.46,152.41,39.1611501]
[1748883090559,39.1611501,152.45,152.41,39.1611501]
[1748883090723,39.1611501,152.45,152.42,6.56081879]
[1748883091567,39.1611501,152.46,152.42,6.56081879]
[1748883091924,39.1611501,152.45,152.42,6.56081879]
[1748883092633,185.5611501,152.47,152.42,45.72196889]
[1748883092963,39.1611501,152.49,152.45,39.1611501]
[1748883093134,39.1611501,152.5,152.45,39.1611501]
[1748883093467,8.34528248,152.52,152.45,39.1611501]
[1748883093628,39.1611501,152.51,152.46,39.1611501]
[1748883093832,39.1611501,152.5,152.46,39.1611501]
[1748883094940,39.1611501,152.51,152.47,6.55866727]
[1748883095145,39.1611501,152.5,152.47,6.55866727]
[1748883095346,39.1611501,152.5,152.45,45.72067781]
[1748883096744,39.1611501,152.49,152.45,45.72067781]
[1748883097129,39.1611501,152.49,152.45,6.55952771]
[1748883097353,39.1611501,152.48,152.45,6.55952771]
[1748883097762,39.1611501,152.46,152.4,17.92229548]
[1748883097972,39.1611501,152.44,152.4,57.08344558]
[1748883098138,39.1611501,152.44,152.41,6.56124926]
[1748883098536,39.1611501,152.45,152.41,6.56124926]
[1748883098941,39.1611501,152.46,152.41,45.72239936]
[1748883099840,39.1611501,152.45,152.41,45.72239936]
[1748883100352,39.1611501,152.47,152.42,39.1611501]
[1748883100554,39.1611501,152.47,152.43,45.72153847]
[1748883100737,39.1611501,152.46,152.43,6.56038837]
[1748883102858,39.1611501,152.46,152.41,55.56427325]
[1748883102859,39.1611501,152.46,152.42,6.56081879]
[1748883103157,23.46825449,152.46,152.42,6.56081879]
[1748883103843,23.46825449,152.46,152.42,30.02907328]
[1748883104458,23.46825449,152.46,152.42,6.56081879]
[1748883104750,23.46825449,152.45,152.42,6.56081879]
[1748883105366,23.46825449,152.47,152.42,30.02907328]
[1748883105564,23.46825449,152.47,152.43,23.46825449]
[1748883106567,23.46825449,152.47,152.44,6.55995801]
[1748883107762,23.46825449,152.48,152.44,6.55995801]
[1748883108144,23.46825449,152.51,152.46,23.46825449]
[1748883108364,23.46825449,152.52,152.48,23.46825449]
[1748883108710,23.46825449,152.52,152.49,6.55780706]
[1748883108839,62.57916301,152.53,152.49,46.42057922]
[1748883109465,23.46825449,152.52,152.49,6.55780706]
[1748883110157,23.46825449,152.5,152.48,6.55809832]
[1748883110681,23.46825449,152.5,152.47,6.55866727]
[1748883111041,23.46825449,152.51,152.47,6.55866727]
[1748883111241,39.08753595,152.51,152.47,6.55866727]
[1748883111856,39.08753595,152.52,152.48,39.08753595]
[1748883112267,78.19844447,152.53,152.48,39.08753595]
[1748883112687,78.19844447,152.53,152.49,6.55780706]
[1748883113269,39.08753595,152.52,152.49,6.55780706]
[1748883115077,39.08753595,152.51,152.48,6.5582229]
[1748883115777,39.08753595,152.52,152.48,6.5582229]
[1748883118071,39.08753595,152.5,152.48,6.5582229]
[1748883119592,39.08753595,152.5,152.47,6.55866727]
[1748883120494,39.08753595,152.48,152.46,6.55894981]
[1748883120695,39.08753595,152.49,152.46,6.55894981]
[1748883120994,39.08753595,152.5,152.46,22.95669348]
[1748883121579,39.08753595,152.49,152.46,22.95669348]
[1748883122802,39.08753595,152.5,152.46,22.95669348]
[1748883123598,39.08753595,152.49,152.46,22.95669348]
[1748883125375,39.08753595,152.5,152.46,22.95669348]
[1748883125881,39.08753595,152.49,152.42,26.35794886]
[1748883126102,0.28432314,152.49,152.43,6.56038837]
[1748883126414,39.08753595,152.49,152.44,39.08753595]
[1748883126994,39.08753595,152.49,152.45,6.55952771]
[1748883127182,39.08753595,152.49,152.45,22.95834699]
[1748883127386,65.08753595,152.51,152.46,39.08753595]
[1748883128500,39.11090852,152.53,152.47,18.64964886]
[1748883128813,39.11090852,152.53,152.5,39.08753595]
[1748883129005,39.11090852,152.53,152.51,6.55694708]
[1748883130303,39.08753595,152.56,152.51,62.03685074]
[1748883130515,8.26252775,152.58,152.53,39.08753595]
[1748883130676,152.95239058,152.62,152.54,39.08753595]
[1748883131020,39.08753595,152.57,152.54,6.55565753]
[1748883131702,0.14216157,152.61,152.54,45.64319348]
[1748883131900,39.08753595,152.58,152.54,45.64319348]
[1748883132877,146.4,152.62,152.54,62.03233731]
[1748883133073,42.82689599,152.61,152.56,45.64233406]
[1748883133294,3.73936004,152.61,152.57,23.42164117]
[1748883133674,27.16100121,152.61,152.57,23.42164117]
[1748883133872,23.42164117,152.61,152.57,23.42164117]
[1748883134300,29.73936004,152.63,152.56,6.55479811]
[1748883134301,23.42164117,152.59,152.56,6.55479811]
[1748883134502,23.42164117,152.57,152.55,6.55507124]
[1748883135213,23.42164117,152.57,152.52,16.3911742]
[1748883135214,23.42164117,152.57,152.54,6.55565753]
[1748883136788,6.55364623,152.59,152.52,39.81281537]
[1748883136789,23.42164117,152.56,152.53,6.55608732]
[1748883137003,23.42164117,152.55,152.53,6.55608732]
[1748883137208,39.06894875,152.54,152.51,14.32127636]
[1748883137506,39.06894875,152.55,152.51,14.32127636]
[1748883137899,39.06894875,152.55,152.51,53.39022511]
[1748883138105,39.06894875,152.56,152.51,69.78259282]
[1748883138409,39.06894875,152.55,152.51,69.78259282]
[1748883140490,39.06894875,152.55,152.51,14.32127636]
[1748883140897,39.06894875,152.54,152.51,14.32127636]
[1748883141091,39.06894875,152.54,152.51,12.79657636]
[1748883142095,39.06894875,152.55,152.51,12.79657636]
[1748883142899,39.06894875,152.55,152.51,51.86552511]
[1748883143093,39.06894875,152.56,152.51,51.86552511]
[1748883143702,39.06894875,152.55,152.51,12.79657636]
[1748883143907,39.06894875,152.55,152.51,51.86552511]
[1748883144289,39.06894875,152.55,152.51,12.79657636]
[1748883144824,39.06894875,152.54,152.51,12.79657636]
[1748883145499,39.06894875,152.55,152.51,12.79657636]
[1748883149007,39.06894875,152.57,152.53,39.06894875]
[1748883149513,39.06894875,152.57,152.54,6.55565753]
[1748883149894,39.06894875,152.58,152.54,6.55565753]
[1748883150291,4.66635888,152.63,152.56,39.06894875]
[1748883150511,39.06894875,152.61,152.57,39.06894875]
[1748883151100,42.80329876,152.61,152.56,39.06894875]
[1748883151306,42.80329876,152.61,152.57,6.55436848]
[1748883151916,3.73435001,152.62,152.6,39.06894875]
[1748883152094,39.06894875,152.66,152.61,39.06894875]
[1748883152298,39.06894875,152.65,152.61,39.06894875]
[1748883153014,39.06894875,152.67,152.63,39.06894875]
[1748883153204,39.06894875,152.68,152.63,39.06894875]
[1748883153404,39.06894875,152.68,152.64,6.55136268]
[1748883153822,39.06894875,152.67,152.64,6.55136268]
[1748883154922,39.06894875,152.65,152.61,45.62159929]
[1748883156325,65.06894875,152.69,152.64,39.06894875]
[1748883156618,39.06894875,152.67,152.63,39.06894875]
[1748883157497,39.06894875,152.67,152.64,6.55136268]
[1748883157698,65.06894875,152.69,152.64,45.62031143]
[1748883158216,39.06894875,152.68,152.64,45.62031143]
[1748883158510,39.06894875,152.66,152.61,39.06894875]
[1748883158902,39.06894875,152.64,152.61,6.55265054]
[1748883159397,39.06894875,152.64,152.6,6.5529082]
[1748883159910,39.06894875,152.64,152.6,45.62185695]
[1748883160926,39.06894875,152.65,152.61,39.06894875]
[1748883161105,39.06894875,152.65,152.6,45.62185695]
[1748883162708,6.5504516,152.67,152.6,45.62185695]
[1748883165317,23.41175566,152.65,152.6,23.41175566]
[1748883166428,0.28432314,152.68,152.59,35.03340753]
[1748883166429,0.28432314,152.68,152.61,29.9644062]
[1748883166633,23.41175566,152.66,152.62,23.41175566]
[1748883166932,23.41175566,152.68,152.63,23.41175566]
[1748883167132,23.41175566,152.68,152.64,23.41175566]
[1748883167616,6.54829162,152.72,152.64,23.41175566]
[1748883167816,162.61190146,152.73,152.67,23.41175566]
[1748883168020,23.41175566,152.71,152.67,23.41175566]
[1748883168317,23.41175566,152.7,152.67,6.55007532]
[1748883168526,23.41175566,152.69,152.64,23.03646087]
[1748883168721,23.41175566,152.69,152.64,46.44821653]
[1748883169110,23.41175566,152.68,152.65,6.5509335]
[1748883169726,23.41175566,152.69,152.65,6.5509335]
[1748883170631,23.41175566,152.68,152.65,6.5509335]
[1748883170940,23.41175566,152.66,152.6,45.9379161]
[1748883171238,26.0,152.69,152.6,22.52616044]
[1748883171239,23.41175566,152.63,152.6,22.52616044]
[1748883171449,23.41175566,152.65,152.61,29.9644062]